fUST/lending_fUST_20240124
["ID","MTS","AMOUNT","RATE_DAILY","PERIOD"]
[312590294,1706037053907,-500.0,0.00041917,31]
[312590295,1706037053917,-500.0,0.00041917,31]
[312590296,1706037053927,-500.0,0.00041917,31]
[312590297,1706037053936,-1325.01,0.00041917,31]
[312590298,1706037053945,-500.0,0.00041917,31]
[312590299,1706037053954,-500.0,0.00041917,31]
[312590300,1706037053963,-503.33646338,0.00041917,31]
[312590301,1706037053972,-500.0,0.00041917,31]
[312590302,1706037053982,-500.0,0.00041917,31]
[312590303,1706037053991,-773.57,0.00041917,31]
[312590304,1706037054001,-1000.0,0.00041917,2]
[312590305,1706037054011,-500.0,0.00041917,31]
[312590306,1706037054021,-500.0,0.00041917,31]
[312590307,1706037054030,-500.0,0.00041917,31]
[312590308,1706037054039,-500.0,0.00041917,31]
[312590309,1706037054048,-1388.64,0.00041917,31]
[312590310,1706037054056,-500.0,0.00041917,31]
[312590311,1706037054066,-500.0,0.00041917,31]
[312590312,1706037054076,-500.0,0.00041917,31]
[312590313,1706037054085,-10493.74,0.00041917,31]
[312590314,1706037054094,-667.51,0.00041917,31]
[312590315,1706037054105,-4157.77,0.00041917,31]
[312590316,1706037054114,-520.3415949,0.00041917,31]
[312590317,1706037054123,-500.0,0.00041917,31]
[312590318,1706037054133,-668.52,0.00041917,31]
[312590319,1706037054142,-500.0,0.00041917,31]
[312590320,1706037054151,-500.0,0.00041917,31]
[312590321,1706037054160,-877.04,0.00041917,31]
[312590322,1706037054170,-500.0,0.00041917,31]
[312590323,1706037054179,-1630.12,0.00041917,31]
[312590324,1706037054188,-500.0,0.00041917,31]
[312590325,1706037054197,-517.9,0.00041917,31]
[312590326,1706037054206,-502.63,0.00041917,31]
[312590327,1706037054215,-26611.84,0.00041917,14]
[312590328,1706037054225,-601.41,0.00041917,31]
[312590329,1706037054234,-500.0,0.00041917,31]
[312590330,1706037054243,-500.0,0.00041917,31]
[312590331,1706037054252,-525.4283161,0.00041917,31]
[312590332,1706037054261,-788.54,0.00041917,31]
[312590333,1706037054271,-595.29457909,0.00041917,31]
[312590334,1706037054280,-2016.28,0.00041917,31]
[312590335,1706037054289,-500.0,0.00041917,31]
[312590336,1706037054298,-500.0,0.00041917,31]
[312590337,1706037054307,-2694.73,0.00041917,31]
[312590338,1706037054317,-500.0,0.00041917,31]
[312590339,1706037054326,-2336.18,0.00041917,31]
[312590340,1706037054335,-680.46,0.00041917,31]
[312590341,1706037054344,-1160.15,0.00041917,31]
[312590342,1706037054353,-500.0,0.00041917,31]
[312590343,1706037054362,-3662.83,0.00041917,31]
[312590344,1706037054370,-341.19234907,0.00041917,31]
[312590345,1706037054379,-500.0,0.00041917,31]
[312590346,1706037054388,-1342.57,0.00041917,31]
[312590347,1706037054397,-500.0,0.00041917,31]
[312590348,1706037054406,-263.47894179,0.00041917,31]
[312590349,1706037054414,-500.0,0.00041917,31]
[312590350,1706037054423,-500.0,0.00041917,31]
[312590351,1706037054432,-500.0,0.00041917,31]
[312590352,1706037054441,-443.86042867,0.00041917,31]
[312590353,1706037054450,-712.42,0.00041917,31]
[312590354,1706037054459,-180.89022087,0.00041917,31]
[312590355,1706037054468,-500.0,0.00041917,31]
[312590356,1706037054477,-621.51921153,0.00041917,31]
[312590357,1706037054486,-507.91661687,0.00041917,31]
[312590358,1706037054495,-500.0,0.00041917,31]
[312590359,1706037054572,-500.0,0.00041917,31]
[312590360,1706037054581,-500.0,0.00041917,31]
[312590361,1706037054590,-1601.77,0.00041917,31]
[312590362,1706037054599,-153.17242078,0.00041922,30]
[312590363,1706037054608,-150.10168145,0.00041962,30]
[312590364,1706037054617,-153.17242078,0.00041996,30]
[312590365,1706037054626,-187.34678733,0.00042,2]
[312590366,1706037054635,-1998.8900358,0.00042,2]
[312590367,1706037054644,-1000.0,0.00042,42]
[312590368,1706037054654,-11949.67023641,0.00042,120]
[312590369,1706037054663,-150.0,0.00042,30]
[312590370,1706037054673,-153.17242078,0.00042002,30]
[312590371,1706037054682,-153.17242078,0.00042096,30]
[312590372,1706037054692,-151.94867438,0.00042102,30]
[312590373,1706037054701,-151.45185766,0.00042106,30]
[312590374,1706037054711,-150.43942456,0.00042187,30]
[312590375,1706037054721,-500.0,0.00042191,31]
[312590376,1706037054731,-323.05952617,0.00042191,31]
[312590377,1706037054740,-583.40333626,0.00042191,31]
[312590378,1706037054750,-500.0,0.00042191,31]
[312590379,1706037054760,-500.0,0.00042191,31]
[312590380,1706037054769,-500.0,0.00042191,31]
[312590381,1706037054780,-1737.38,0.00042191,2]
[312590382,1706037054790,-500.0,0.00042191,31]
[312590383,1706037054800,-626.14621229,0.00042191,31]
[312590384,1706037054810,-500.0,0.00042191,31]
[312590385,1706037054824,-500.0,0.00042191,31]
[312590386,1706037054833,-500.0,0.00042191,31]
[312590387,1706037054843,-500.0,0.00042191,7]
[312590388,1706037054855,-500.0,0.00042191,31]
[312590389,1706037054864,-150.0,0.00042191,31]
[312590390,1706037054874,-554.14,0.00042191,31]
[312590391,1706037054884,-500.0,0.00042191,31]
[312590392,1706037054893,-500.0,0.00042191,31]
[312590393,1706037054903,-500.0,0.00042191,31]
[312590394,1706037054913,-500.0,0.00042191,31]
[312590395,1706037054924,-975.59,0.00042191,31]
[312590396,1706037054932,-500.0,0.00042191,31]
[312590397,1706037054942,-500.0,0.00042191,31]
[312590398,1706037054952,-500.0,0.00042191,31]
[312590399,1706037054962,-500.0,0.00042191,31]
[312590400,1706037054971,-379.82382502,0.00042191,31]
[312590401,1706037054980,-836.28,0.00042191,31]
[312590402,1706037054989,-500.0,0.00042191,31]
[312590403,1706037055000,-500.0,0.00042191,31]
[312590404,1706037055009,-500.0,0.00042191,31]
[312590405,1706037055018,-500.0,0.00042191,31]
[312590406,1706037055027,-500.0,0.00042191,31]
[312590407,1706037055036,-500.0,0.00042191,31]
[312590408,1706037055046,-500.0,0.00042191,31]
[312590409,1706037055055,-500.0,0.00042191,7]
[312590410,1706037055065,-260.04686063,0.00042191,31]
[312590411,1706037055078,-508.96820946,0.00042191,31]
[312590412,1706037055088,-500.0,0.00042191,31]
[312590413,1706037055097,-500.0,0.00042191,31]
[312590414,1706037055107,-500.0,0.00042191,31]
[312590415,1706037055116,-500.0,0.00042191,31]
[312590416,1706037055125,-500.0,0.00042191,31]
[312590417,1706037055134,-500.0,0.00042191,31]
[312590418,1706037055144,-500.0,0.00042191,31]
[312590419,1706037055154,-1526.53,0.00042191,31]
[312590420,1706037055163,-587.59,0.00042191,31]
[312590421,1706037055185,-500.0,0.00042191,31]
[312590422,1706037055201,-500.0,0.00042191,31]
[312590423,1706037055217,-183.40688505,0.00042191,31]
[312590424,1706037055235,-500.0,0.00042191,31]
[312590425,1706037055252,-500.0,0.00042191,31]
[312590426,1706037055264,-568.41,0.00042191,31]
[312590427,1706037055281,-500.0,0.00042191,31]
[312590428,1706037055296,-803.44,0.00042191,31]
[312590429,1706037055311,-500.0,0.00042191,31]
[312590430,1706037055328,-928.4,0.00042191,31]
[312590431,1706037055343,-500.0,0.00042191,31]
[312590432,1706037055357,-1000.0,0.00042191,2]
[312590433,1706037055372,-500.0,0.00042191,31]
[312590434,1706037055389,-583.54,0.00042191,31]
[312590435,1706037055407,-769.96,0.00042191,31]
[312590436,1706037055420,-500.0,0.00042191,31]
[312590437,1706037055433,-500.0,0.00042191,31]
[312590438,1706037055448,-664.95,0.00042191,31]
[312590439,1706037055463,-500.0,0.00042191,31]
[312590440,1706037055476,-500.0,0.00042191,31]
[312590441,1706037055488,-1240.8,0.00042191,31]
[312590442,1706037055501,-500.0,0.00042191,31]
[312590443,1706037055515,-500.0,0.00042191,31]
[312590444,1706037055528,-599.57678071,0.00042191,31]
[312590445,1706037055541,-662.56,0.00042191,31]
[312590446,1706037055555,-500.0,0.00042191,31]
[312590447,1706037055569,-283.03941981,0.00042191,31]
[312590448,1706037055582,-500.0,0.00042191,31]
[312590449,1706037055595,-810.35,0.00042191,31]
[312590450,1706037055607,-936.19,0.00042191,31]
[312590451,1706037055621,-500.0,0.00042191,31]
[312590452,1706037055634,-644.94,0.00042191,31]
[312590453,1706037055648,-500.0,0.00042191,31]
[312590454,1706037055662,-1012.08,0.00042191,31]
[312590455,1706037055675,-500.0,0.00042191,31]
[312590456,1706037055688,-500.0,0.00042191,31]
[312590457,1706037055702,-500.0,0.00042191,31]
[312590458,1706037055715,-500.0,0.00042191,31]
[312590459,1706037055729,-500.0,0.00042191,31]
[312590460,1706037055744,-500.0,0.00042191,31]
[312590461,1706037055757,-2006.77,0.00042191,31]
[312590462,1706037055771,-753.82,0.00042191,31]
[312590463,1706037055785,-500.0,0.00042191,31]
[312590464,1706037055795,-836.86,0.00042191,31]
[312590465,1706037055805,-500.0,0.00042191,31]
[312590466,1706037055814,-500.0,0.00042191,31]
[312590467,1706037055825,-500.0,0.00042191,31]
[312590468,1706037055835,-500.0,0.00042191,31]
[312590469,1706037055844,-500.0,0.00042191,31]
[312590470,1706037055854,-500.0,0.00042191,31]
[312590471,1706037055865,-341.66194997,0.00042191,31]
[312590472,1706037055874,-500.0,0.00042191,31]
[312590473,1706037055884,-3125.81,0.00042191,31]
[312590474,1706037055894,-500.0,0.00042191,7]
[312590475,1706037055907,-572.64642066,0.00042191,31]
[312590476,1706037055917,-1046.12,0.00042191,31]
[312590477,1706037055927,-500.0,0.00042191,31]
[312590478,1706037055937,-1533.55,0.00042191,31]
[312590479,1706037055947,-500.0,0.00042191,31]
[312590480,1706037055956,-500.0,0.00042191,31]
[312590481,1706037056096,-500.0,0.00042191,31]
[312590482,1706037056142,-500.0,0.00042191,31]
[312590483,1706037056156,-556.14,0.00042191,31]
[312590484,1706037056165,-500.0,0.00042191,31]
[312590485,1706037056175,-2142.23,0.00042191,31]
[312590486,1706037056184,-254.95346707,0.00042191,31]
[312590487,1706037056194,-1492.04,0.00042191,31]
[312590488,1706037056203,-150.0,0.00042191,14]
[312590489,1706037056212,-1000.0,0.00042191,2]
[312590490,1706037056221,-500.0,0.00042191,7]
[312590491,1706037056230,-500.0,0.00042191,31]
[312590492,1706037056239,-557.88,0.00042191,31]
[312590493,1706037056248,-500.0,0.00042191,2]
[312590494,1706037056257,-570.77,0.00042191,31]
[312590495,1706037056267,-500.0,0.00042191,31]
[312590496,1706037056276,-830.51,0.00042191,31]
[312590497,1706037056285,-1071.98,0.00042191,31]
[312590498,1706037056294,-500.0,0.00042191,31]
[312590499,1706037056303,-617.33,0.00042191,31]
[312590500,1706037056312,-500.0,0.00042191,31]
[312590501,1706037056323,-500.0,0.00042191,31]
[312590502,1706037056332,-2589.44,0.00042191,31]
[312590503,1706037056342,-1336.98,0.00042191,31]
[312590504,1706037056351,-689.22,0.00042191,31]
[312590505,1706037056362,-500.0,0.00042191,31]
[312590506,1706037056371,-1436.14,0.00042191,31]
[312590507,1706037056380,-500.0,0.00042191,31]
[312590508,1706037056389,-1212.95,0.00042191,31]
[312590509,1706037056398,-500.0,0.00042191,31]
[312590510,1706037056408,-952.27,0.00042191,31]
[312590511,1706037056417,-500.0,0.00042191,31]
[312590512,1706037056426,-500.0,0.00042191,31]
[312590513,1706037056435,-500.0,0.00042191,31]
[312590514,1706037056444,-500.0,0.00042191,31]
[312590515,1706037056453,-524.23,0.00042191,31]
[312590516,1706037056462,-500.0,0.00042191,31]
[312590517,1706037056471,-500.0,0.00042191,31]
[312590518,1706037056480,-500.0,0.00042191,31]
[312590519,1706037056489,-500.0,0.00042191,31]
[312590520,1706037056498,-500.0,0.00042191,31]
[312590521,1706037056507,-500.0,0.00042191,31]
[312590522,1706037056516,-509.87238988,0.00042191,31]
[312590523,1706037056525,-4888.61,0.00042191,31]
[312590524,1706037056534,-527.88,0.00042191,20]
[312590525,1706037056543,-631.23,0.00042191,31]
[312590526,1706037056551,-1233.83,0.00042191,31]
[312590527,1706037056561,-756.58,0.00042191,31]
[312590528,1706037056571,-500.0,0.00042191,31]
[312590529,1706037056580,-875.32,0.00042191,31]
[312590530,1706037056589,-577.87919122,0.00042191,2]
[312590531,1706037056598,-500.0,0.00042191,31]
[312590532,1706037056608,-516.46,0.00042191,31]
[312590533,1706037056618,-842.54,0.00042191,31]
[312590534,1706037056627,-500.0,0.00042191,31]
[312590535,1706037056637,-505.7637884,0.00042191,31]
[312590536,1706037056646,-500.0,0.00042191,31]
[312590537,1706037056656,-500.0,0.00042191,31]
[312590538,1706037056666,-1325.01,0.00042191,31]
[312590539,1706037056675,-500.0,0.00042191,31]
[312590540,1706037056684,-500.0,0.00042191,31]
[312590541,1706037056693,-500.0,0.00042191,31]
[312590542,1706037056702,-500.0,0.00042191,31]
[312590543,1706037056711,-773.57,0.00042191,31]
[312590544,1706037056720,-1000.0,0.00042191,2]
[312590545,1706037056729,-500.0,0.00042191,31]
[312590546,1706037056738,-300.71370059,0.00042191,31]
[312590547,1706037056747,-500.0,0.00042191,31]
[312590548,1706037056756,-500.0,0.00042191,31]
[312590549,1706037056765,-1388.64,0.00042191,31]
[312590550,1706037056774,-500.0,0.00042191,31]
[312590551,1706037056783,-422.67794956,0.00042191,31]
[312590552,1706037056793,-500.0,0.00042191,31]
[312590553,1706037056801,-10493.74,0.00042191,31]
[312590554,1706037056810,-667.51,0.00042191,31]
[312590555,1706037056821,-4157.77,0.00042191,31]
[312590556,1706037056830,-500.0,0.00042191,31]
[312590557,1706037056838,-668.52,0.00042191,31]
[312590558,1706037056847,-500.0,0.00042191,31]
[312590559,1706037056857,-500.0,0.00042191,31]
[312590560,1706037056866,-877.04,0.00042191,31]
[312590561,1706037056875,-500.0,0.00042191,31]
[312590562,1706037056884,-1630.12,0.00042191,31]
[312590563,1706037056893,-500.0,0.00042191,31]
[312590564,1706037056904,-517.9,0.00042191,31]
[312590565,1706037056919,-502.63,0.00042191,31]
[312590566,1706037056930,-601.41,0.00042191,31]
[312590567,1706037056938,-26611.84,0.00042191,14]
[312590568,1706037056948,-500.0,0.00042191,31]
[312590569,1706037056957,-176.90590721,0.00042191,31]
[312590570,1706037056966,-788.54,0.00042191,31]
[312590571,1706037056975,-2016.28,0.00042191,31]
[312590572,1706037056984,-500.0,0.00042191,31]
[312590573,1706037056993,-500.0,0.00042191,31]
[312590574,1706037057003,-2694.73,0.00042191,31]
[312590575,1706037057012,-500.0,0.00042191,31]
[312590576,1706037057021,-2336.18,0.00042191,31]
[312590577,1706037057030,-680.46,0.00042191,31]
[312590578,1706037057039,-1160.15,0.00042191,31]
[312590579,1706037057048,-441.4374096,0.00042191,31]
[312590580,1706037057058,-3662.83,0.00042191,31]
[312590581,1706037057067,-500.0,0.00042191,31]
[312590582,1706037057077,-1342.57,0.00042191,31]
[312590583,1706037057087,-500.0,0.00042191,31]
[312590584,1706037057097,-500.0,0.00042191,31]
[312590585,1706037057106,-500.0,0.00042191,31]
[312590586,1706037057116,-500.0,0.00042191,31]
[312590587,1706037057126,-712.42,0.00042191,31]
[312590588,1706037057135,-500.0,0.00042191,31]
[312590589,1706037057144,-500.0,0.00042191,31]
[312590590,1706037057154,-500.0,0.00042191,31]
[312590591,1706037057163,-500.0,0.00042191,31]
[312590592,1706037057173,-1601.77,0.00042191,31]
[312590593,1706037057182,-151.94867438,0.00042202,30]
[312590594,1706037057191,-153.17242078,0.0004221,30]
[312590595,1706037057203,-151.94867438,0.00042232,30]
[312590596,1706037057224,-164.67640716,0.00042368,60]
[312590597,1706037057233,-174.61760213,0.00042423,30]
[312590598,1706037057243,-206.67,0.0004245,7]
[312590599,1706037057252,-500.0,0.00042465,31]
[312590600,1706037057261,-500.0,0.00042465,31]
[312590601,1706037057270,-500.0,0.00042465,31]
[312590602,1706037057280,-500.0,0.00042465,31]
[312590603,1706037057289,-1737.38,0.00042465,2]
[312590604,1706037057298,-444.42457744,0.00042465,31]
[312590605,1706037057307,-500.0,0.00042465,31]
[312590606,1706037057317,-500.0,0.00042465,31]
[312590607,1706037057327,-500.0,0.00042465,31]
[312590608,1706037057337,-500.0,0.00042465,7]
[312590609,1706037057346,-500.0,0.00042465,31]
[312590610,1706037057356,-150.0,0.00042465,31]
[312590611,1706037057365,-554.14,0.00042465,31]
[312590612,1706037057374,-500.0,0.00042465,31]
[312590613,1706037057383,-500.0,0.00042465,31]
[312590614,1706037057392,-500.0,0.00042465,31]
[312590615,1706037057401,-500.0,0.00042465,31]
[312590616,1706037057411,-975.59,0.00042465,31]
[312590617,1706037057424,-500.0,0.00042465,31]
[312590618,1706037057438,-500.0,0.00042465,31]
[312590619,1706037057446,-500.0,0.00042465,31]
[312590620,1706037057455,-500.0,0.00042465,31]
[312590621,1706037057464,-836.28,0.00042465,31]
[312590622,1706037057473,-500.0,0.00042465,31]
[312590623,1706037057483,-500.0,0.00042465,31]
[312590624,1706037057493,-500.0,0.00042465,31]
[312590625,1706037057503,-500.0,0.00042465,31]
[312590626,1706037057513,-500.0,0.00042465,31]
[312590627,1706037057522,-500.0,0.00042465,31]
[312590628,1706037057531,-500.0,0.00042465,31]
[312590629,1706037057541,-500.0,0.00042465,7]
[312590630,1706037057550,-500.0,0.00042465,31]
[312590631,1706037057560,-500.0,0.00042465,31]
[312590632,1706037057570,-500.0,0.00042465,31]
[312590633,1706037057579,-500.0,0.00042465,31]
[312590634,1706037057588,-500.0,0.00042465,31]
[312590635,1706037057597,-500.0,0.00042465,31]
[312590636,1706037057607,-500.0,0.00042465,31]
[312590637,1706037057616,-1526.53,0.00042465,31]
[312590638,1706037057626,-587.59,0.00042465,31]
[312590639,1706037057635,-500.0,0.00042465,31]
[312590640,1706037057646,-500.0,0.00042465,31]
[312590641,1706037057657,-500.0,0.00042465,31]
[312590642,1706037057666,-500.0,0.00042465,31]
[312590643,1706037057676,-568.41,0.00042465,31]
[312590644,1706037057685,-500.0,0.00042465,31]
[312590645,1706037057694,-803.44,0.00042465,31]
[312590646,1706037057703,-500.0,0.00042465,31]
[312590647,1706037057712,-928.4,0.00042465,31]
[312590648,1706037057721,-500.0,0.00042465,31]
[312590649,1706037057730,-1000.0,0.00042465,2]
[312590650,1706037057739,-500.0,0.00042465,31]
[312590651,1706037057748,-583.54,0.00042465,31]
[312590652,1706037057757,-769.96,0.00042465,31]
[312590653,1706037057767,-500.0,0.00042465,31]
[312590654,1706037057776,-553.79981414,0.00042465,31]
[312590655,1706037057785,-664.95,0.00042465,31]
[312590656,1706037057794,-312.24134907,0.00042465,31]
[312590657,1706037057804,-500.0,0.00042465,31]
[312590658,1706037057813,-1240.8,0.00042465,31]
[312590659,1706037057825,-500.0,0.00042465,31]
[312590660,1706037057841,-274.62857446,0.00042465,31]
[312590661,1706037057852,-662.56,0.00042465,31]
[312590662,1706037057861,-500.0,0.00042465,31]
[312590663,1706037057870,-500.0,0.00042465,31]
[312590664,1706037057879,-810.35,0.00042465,31]
[312590665,1706037057889,-936.19,0.00042465,31]
[312590666,1706037057900,-500.0,0.00042465,31]
[312590667,1706037057910,-644.94,0.00042465,31]
[312590668,1706037057920,-500.0,0.00042465,31]
[312590669,1706037057929,-1012.08,0.00042465,31]
[312590670,1706037057939,-500.0,0.00042465,31]
[312590671,1706037057949,-500.0,0.00042465,31]
[312590672,1706037057958,-500.0,0.00042465,31]
[312590673,1706037057967,-500.0,0.00042465,31]
[312590674,1706037057976,-500.0,0.00042465,31]
[312590675,1706037057987,-500.0,0.00042465,31]
[312590676,1706037057997,-2006.77,0.00042465,31]
[312590677,1706037058006,-753.82,0.00042465,31]
[312590678,1706037058016,-500.0,0.00042465,31]
[312590679,1706037058026,-836.86,0.00042465,31]
[312590680,1706037058037,-500.0,0.00042465,31]
[312590681,1706037058048,-500.0,0.00042465,31]
[312590682,1706037058060,-500.0,0.00042465,31]
[312590683,1706037058072,-500.0,0.00042465,31]
[312590684,1706037058084,-500.0,0.00042465,31]
[312590685,1706037058095,-500.0,0.00042465,31]
[312590686,1706037058105,-500.0,0.00042465,31]
[312590687,1706037058114,-3125.81,0.00042465,31]
[312590688,1706037058124,-500.0,0.00042465,7]
[312590689,1706037058133,-1046.12,0.00042465,31]
[312590690,1706037058143,-1533.55,0.00042465,31]
[312590691,1706037058152,-500.0,0.00042465,31]
[312590692,1706037058162,-500.0,0.00042465,31]
[312590693,1706037058172,-500.0,0.00042465,31]
[312590694,1706037058181,-498.42847435,0.00042465,31]
[312590695,1706037058191,-500.0,0.00042465,31]
[312590696,1706037058201,-556.14,0.00042465,31]
[312590697,1706037058211,-500.0,0.00042465,31]
[312590698,1706037058221,-2142.23,0.00042465,31]
[312590699,1706037058231,-1492.04,0.00042465,31]
[312590700,1706037058241,-150.0,0.00042465,14]
[312590701,1706037058251,-1000.0,0.00042465,2]
[312590702,1706037058261,-500.0,0.00042465,7]
[312590703,1706037058271,-500.0,0.00042465,31]
[312590704,1706037058280,-557.88,0.00042465,31]
[312590705,1706037058293,-500.0,0.00042465,2]
[312590706,1706037058302,-570.77,0.00042465,31]
[312590707,1706037058312,-500.0,0.00042465,31]
[312590708,1706037058321,-830.51,0.00042465,31]
[312590709,1706037058330,-1071.98,0.00042465,31]
[312590710,1706037058339,-500.0,0.00042465,31]
[312590711,1706037058348,-617.33,0.00042465,31]
[312590712,1706037058358,-506.08551368,0.00042465,31]
[312590713,1706037058368,-500.0,0.00042465,31]
[312590714,1706037058377,-2589.44,0.00042465,31]
[312590715,1706037058389,-1336.98,0.00042465,31]
[312590716,1706037058398,-689.22,0.00042465,31]
[312590717,1706037058407,-500.0,0.00042465,31]
[312590718,1706037058416,-1436.14,0.00042465,31]
[312590719,1706037058425,-500.0,0.00042465,31]
[312590720,1706037058434,-1212.95,0.00042465,31]
[312590721,1706037058444,-500.0,0.00042465,31]
[312590722,1706037058453,-952.27,0.00042465,31]
[312590723,1706037058463,-500.0,0.00042465,31]
[312590724,1706037058472,-500.0,0.00042465,31]
[312590725,1706037058482,-500.0,0.00042465,31]
[312590726,1706037058491,-500.0,0.00042465,31]
[312590727,1706037058501,-524.23,0.00042465,31]
[312590728,1706037058510,-500.0,0.00042465,31]
[312590729,1706037058518,-500.0,0.00042465,31]
[312590730,1706037058528,-524.22559226,0.00042465,31]
[312590731,1706037058537,-500.0,0.00042465,31]
[312590732,1706037058546,-500.0,0.00042465,31]
[312590733,1706037058555,-500.0,0.00042465,31]
[312590734,1706037058564,-4888.61,0.00042465,31]
[312590735,1706037058575,-527.88,0.00042465,20]
[312590736,1706037058584,-631.23,0.00042465,31]
[312590737,1706037058594,-1233.83,0.00042465,31]
[312590738,1706037058603,-756.58,0.00042465,31]
[312590739,1706037058613,-500.0,0.00042465,31]
[312590740,1706037058622,-875.32,0.00042465,31]
[312590741,1706037058631,-500.0,0.00042465,31]
[312590742,1706037058640,-516.46,0.00042465,31]
[312590743,1706037058649,-842.54,0.00042465,31]
[312590744,1706037058658,-403.58151384,0.00042465,31]
[312590745,1706037058667,-500.0,0.00042465,31]
[312590746,1706037058676,-500.0,0.00042465,31]
[312590747,1706037058687,-1325.01,0.00042465,31]
[312590748,1706037058789,-500.0,0.00042465,31]
[312590749,1706037058799,-500.0,0.00042465,31]
[312590750,1706037058808,-212.16199041,0.00042465,31]
[312590751,1706037058817,-500.0,0.00042465,31]
[312590752,1706037058828,-773.57,0.00042465,31]
[312590753,1706037058837,-1000.0,0.00042465,2]
[312590754,1706037058846,-500.0,0.00042465,31]
[312590755,1706037058855,-500.0,0.00042465,31]
[312590756,1706037058864,-500.0,0.00042465,31]
[312590757,1706037058873,-1388.64,0.00042465,31]
[312590758,1706037058882,-500.0,0.00042465,31]
[312590759,1706037058891,-500.0,0.00042465,31]
[312590760,1706037058902,-10493.74,0.00042465,31]
[312590761,1706037058912,-667.51,0.00042465,31]
[312590762,1706037058925,-4157.77,0.00042465,31]
[312590763,1706037058935,-500.0,0.00042465,31]
[312590764,1706037058945,-668.52,0.00042465,31]
[312590765,1706037058956,-500.0,0.00042465,31]
[312590766,1706037058965,-500.0,0.00042465,31]
[312590767,1706037058974,-877.04,0.00042465,31]
[312590768,1706037058984,-500.0,0.00042465,31]
[312590769,1706037058994,-1630.12,0.00042465,31]
[312590770,1706037059004,-359.200616,0.00042465,31]
[312590771,1706037059014,-517.9,0.00042465,31]
[312590772,1706037059023,-502.63,0.00042465,31]
[312590773,1706037059034,-26611.84,0.00042465,14]
[312590774,1706037059043,-601.41,0.00042465,31]
[312590775,1706037059053,-500.0,0.00042465,31]
[312590776,1706037059064,-788.54,0.00042465,31]
[312590777,1706037059074,-2016.28,0.00042465,31]
[312590778,1706037059083,-303.16870141,0.00042465,31]
[312590779,1706037059092,-500.0,0.00042465,31]
[312590780,1706037059101,-2694.73,0.00042465,31]
[312590781,1706037059110,-500.0,0.00042465,31]
[312590782,1706037059120,-680.46,0.00042465,31]
[312590783,1706037059129,-2336.18,0.00042465,31]
[312590784,1706037059138,-1160.15,0.00042465,31]
[312590785,1706037059148,-3662.83,0.00042465,31]
[312590786,1706037059157,-500.0,0.00042465,31]
[312590787,1706037059167,-1342.57,0.00042465,31]
[312590788,1706037059177,-500.0,0.00042465,31]
[312590789,1706037059188,-500.0,0.00042465,31]
[312590790,1706037059199,-500.0,0.00042465,31]
[312590791,1706037059208,-500.0,0.00042465,31]
[312590792,1706037059218,-712.42,0.00042465,31]
[312590793,1706037059227,-500.0,0.00042465,31]